bitfinex/quotes_ETHUSD_20251125
["timestamp","ask_amount","ask_price","bid_price","bid_amount"]
[1764088518789,0.1807,2931.1,2930.1,0.405504]
[1764088518987,0.1807,2931.1,2930.1,0.529804]
[1764088519418,0.6661,2931.1,2930.2,6.82547266]
[1764088519621,0.4854,2931.0,2930.2,6.82547266]
[1764088519916,0.4854,2931.0,2930.2,3.41273633]
[1764088520077,0.4854,2931.0,2930.2,6.82547266]
[1764088520482,0.4854,2931.0,2930.2,3.41273633]
[1764088521079,0.4854,2931.0,2930.1,3.41281634]
[1764088521412,0.4962,2930.3,2930.0,0.001]
[1764088522378,0.4751,2930.2,2930.0,0.001]
[1764088522605,0.4962,2930.3,2930.0,0.001]
[1764088522798,0.4751,2930.6,2930.0,0.001]
[1764088523506,0.4751,2930.8,2930.0,0.001]
[1764088524379,4.81594323,2932.0,2930.7,0.1243]
[1764088524380,0.4751,2931.7,2930.7,0.1243]
[1764088524987,0.002,2931.8,2930.7,0.2486]
[1764088525203,0.4751,2931.7,2930.5,0.221]
[1764088525512,0.002,2931.8,2930.6,13.64908208]
[1764088525817,0.002,2931.8,2930.7,0.72559411]
[1764088526125,0.72559411,2931.7,2930.2,3.41273633]
[1764088526307,0.72559411,2931.7,2930.4,0.221]
[1764088526481,0.4751,2931.6,2930.4,0.221]
[1764088527002,0.4751,2931.6,2930.2,6.82547266]
[1764088527003,0.6836,2930.5,2930.2,3.41273633]
[1764088527203,0.4962,2930.3,2930.0,3.41392605]
[1764088527513,0.1874,2930.5,2930.0,0.001]
[1764088528625,0.4751,2931.4,2930.4,0.1243]
[1764088529418,0.4751,2931.7,2930.5,14.05505184]
[1764088529620,0.4751,2931.7,2930.6,0.72559411]
[1764088529787,0.4751,2931.7,2930.7,0.221]
[1764088531518,0.4751,2931.7,2930.8,10.23611298]
[1764088531923,0.4751,2931.7,2930.8,6.82407532]
[1764088533614,0.4751,2931.7,2930.7,6.82430818]
[1764088533955,0.4771,2931.7,2930.7,6.82430818]
[1764088535125,0.4771,2931.7,2930.7,6.66309818]
[1764088535696,0.4771,2931.7,2930.5,0.72559411]
[1764088536293,0.4763,2931.7,2930.5,0.72559411]
[1764088537227,0.1874,2930.6,2930.4,3.41250341]
[1764088537522,0.1874,2930.6,2930.4,6.82500682]
[1764088538231,0.1874,2930.6,2930.4,3.41250341]
[1764088538524,0.1874,2930.6,2930.1,3.41283592]
[1764088538729,0.4962,2930.5,2930.1,6.82568872]
[1764088539095,0.4962,2930.2,2930.1,3.4128528]
[1764088539705,0.4962,2930.2,2930.0,0.001]
[1764088540238,0.4751,2930.4,2930.0,0.001]
[1764088540436,0.1874,2930.6,2930.0,0.001]
[1764088540743,0.6625,2930.6,2930.0,0.001]
[1764088542335,0.1874,2930.6,2930.0,0.001]
[1764088543538,0.6625,2930.6,2930.0,0.001]
[1764088544104,0.4751,2930.5,2930.0,0.001]
[1764088544333,0.4962,2930.1,2930.0,0.001]
[1764088544805,0.9713,2930.1,2930.0,0.001]
[1764088545552,1.70670829,2930.1,2930.0,0.001]
[1764088545761,5.11956109,2930.1,2930.0,0.001]
[1764088545929,2.4323024,2930.1,2930.0,0.001]
[1764088546257,0.1874,2930.6,2930.0,0.001]
[1764088546418,0.4751,2930.5,2930.0,0.001]
[1764088546622,0.4962,2930.1,2930.0,0.001]
[1764088546823,0.9713,2930.1,2930.0,0.001]
[1764088547128,0.4962,2930.1,2930.0,0.001]
[1764088547354,0.9713,2930.1,2930.0,0.001]
[1764088548520,5.11921201,2930.1,2930.0,0.001]
[1764088549050,5.84480612,2930.1,2930.0,0.001]
[1764088549839,6.25031012,2930.1,2930.0,0.001]
[1764088550440,0.405504,2930.0,2929.8,0.001]
[1764088550639,1.96913969,2929.9,2929.8,0.001]
[1764088550826,21.09829832,2929.9,2929.8,0.001]
[1764088551031,21.57909832,2929.9,2929.8,0.001]
[1764088551238,15.75996614,2929.9,2929.8,0.001]
[1764088551948,19.76363891,2929.9,2929.8,0.001]
[1764088552162,18.84611509,2929.9,2929.8,0.001]
[1764088552363,19.76302744,2929.9,2929.8,0.001]
[1764088552522,31.13109811,2929.8,2929.7,0.001]
[1764088552718,21.23791961,2929.8,2929.7,0.001]
[1764088552922,19.18676361,2929.8,2929.7,0.001]
[1764088553338,19.18676361,2929.8,2929.5,0.001]
[1764088553524,28.897045,2929.6,2929.5,0.001]
[1764088553733,30.35769832,2929.6,2929.5,0.001]
[1764088553929,35.2947596,2929.6,2929.5,0.001]
[1764088554134,27.7257006,2929.6,2929.5,0.001]
[1764088554857,36.2128926,2929.6,2929.5,0.001]
[1764088555056,29.867687,2929.2,2927.8,6.83106132]
[1764088555368,0.94101021,2929.1,2927.8,6.83106132]
[1764088555726,0.405504,2928.9,2927.8,6.83106132]
[1764088555922,0.72559411,2928.7,2927.8,6.83106132]
[1764088556558,1.20639411,2928.7,2927.8,6.83106132]
[1764088557154,0.4808,2928.6,2927.8,6.83106132]
[1764088557351,0.193,2928.8,2927.8,10.37169516]
[1764088557558,0.91859411,2928.8,2927.8,6.95616132]
[1764088557741,0.193,2928.8,2927.8,6.95616132]
[1764088557946,0.193,2928.8,2927.8,6.83106132]
[1764088557947,3.41460083,2928.6,2927.8,6.83106132]
[1764088558251,3.89533114,2928.7,2927.8,6.83106132]
[1764088558757,0.4808,2928.6,2927.8,6.83106132]
[1764088559950,0.4808,2928.6,2927.8,3.41552748]
[1764088560183,6.82863486,2928.5,2927.7,3.54069296]
[1764088560478,7.32493486,2928.5,2927.7,3.54069296]
[1764088560673,0.193,2928.8,2927.5,6.8317677]
[1764088560674,3.17396,2928.4,2927.5,6.8317677]
[1764088560851,0.193,2928.8,2927.5,13.7886354]
[1764088561030,0.72559411,2928.7,2927.6,0.1251]
[1764088561626,0.72559411,2928.7,2927.5,6.8317677]
[1764088561627,0.4963,2928.6,2927.5,6.8317677]
[1764088561830,2.387102,2928.5,2927.5,6.8317677]
[1764088562028,3.41483403,2928.4,2927.5,6.8317677]
[1764088562250,3.91113403,2928.4,2927.5,6.8317677]
[1764088562450,3.91113403,2928.4,2927.1,0.1251]
[1764088562451,1.22189411,2928.3,2927.1,0.1251]
[1764088562876,0.4963,2928.2,2927.1,0.1251]
[1764088563250,0.4963,2928.2,2927.2,0.1251]
[1764088563439,0.4963,2928.2,2927.1,0.1251]
[1764088564143,0.4963,2928.2,2926.5,0.72659411]
[1764088564144,0.1851,2927.2,2926.7,3.5418989]
[1764088564344,0.1851,2927.2,2926.5,0.001]
[1764088564345,0.4909,2926.8,2926.5,0.001]
[1764088564545,0.4909,2926.6,2926.5,0.001]
[1764088564735,4.91808811,2926.6,2926.5,0.001]
[1764088564934,2.11829811,2926.6,2926.5,0.001]
[1764088565356,1.71279411,2926.6,2926.5,0.001]
[1764088565838,5.54849711,2926.6,2926.5,0.001]
[1764088566170,8.96543143,2926.6,2926.5,0.001]
[1764088566632,0.72559411,2926.6,2926.5,0.001]
[1764088567141,1.21649411,2926.6,2926.5,0.001]
[1764088567550,5.53523243,2926.6,2926.5,0.001]
[1764088567779,1.71279411,2926.6,2926.5,0.001]
[1764088567985,0.4963,2927.0,2926.5,0.001]
[1764088568890,1.13109811,2926.9,2926.5,0.001]
[1764088569090,0.4909,2926.6,2926.5,0.001]
[1764088569586,0.4963,2926.8,2926.5,0.001]
[1764088569748,30.0,2926.5,2925.5,0.001]
[1764088569944,30.0,2926.5,2925.0,0.001]
[1764088569945,0.405504,2925.5,2925.0,0.001]
[1764088570190,9.59789806,2925.4,2925.0,0.001]
[1764088570486,8.48301706,2925.4,2925.0,0.001]
[1764088570692,3.33580611,2925.3,2925.0,0.001]
[1764088570847,0.4909,2925.1,2925.0,0.001]
[1764088571384,0.405504,2925.7,2925.0,0.001]
[1764088571783,0.72559411,2925.8,2925.0,0.001]
[1764088572087,0.6814,2925.9,2925.0,0.001]
[1764088572088,4.82477539,2925.9,2925.0,0.001]
[1764088572383,8.24255667,2925.9,2925.0,0.001]
[1764088572584,0.72559411,2925.7,2925.0,0.001]
[1764088572776,1.22189411,2925.8,2925.0,0.001]
[1764088572976,2.587,2925.7,2925.0,0.001]
[1764088573157,2.158,2925.6,2925.0,0.001]
[1764088573358,0.72559411,2925.8,2925.0,0.001]
[1764088573778,0.91069411,2925.9,2925.0,0.001]
[1764088573954,7.74622309,2925.9,2925.0,0.001]
[1764088574162,7.74622309,2925.9,2925.0,3.41980341]
[1764088574354,0.4963,2925.8,2925.0,0.001]
[1764088574894,0.4909,2925.1,2925.0,0.001]
[1764088575055,0.4909,2925.1,2924.5,0.001]
[1764088575252,0.4963,2925.4,2924.5,0.001]
[1764088575786,0.4963,2925.4,2924.5,3.42038792]
[1764088575989,0.901804,2925.7,2924.6,0.1301]
[1764088576287,0.72559411,2925.4,2924.7,3.4191541]
[1764088576486,0.72559411,2925.4,2924.6,3.41922425]
[1764088577056,0.72559411,2925.4,2924.5,3.42037374]
[1764088577057,0.72559411,2925.4,2924.5,3.42035257]
[1764088577279,0.72559411,2925.4,2924.5,0.001]
[1764088577796,0.72559411,2925.4,2924.5,3.42036731]
[1764088578180,6.83713934,2925.2,2924.5,0.001]
[1764088578858,0.72559411,2925.3,2924.5,0.001]
[1764088579507,0.4963,2925.2,2924.5,0.001]
[1764088579864,2.255,2925.1,2924.5,0.001]
[1764088580059,0.72559411,2925.1,2924.5,0.001]
[1764088580270,0.72559411,2924.9,2924.5,0.001]
[1764088580477,0.198,2924.6,2924.5,0.001]
[1764088580695,0.6695,2924.6,2924.5,0.001]
[1764088580906,0.198,2924.6,2924.5,0.001]
[1764088581204,0.72559411,2925.0,2924.5,0.1311]
[1764088581578,0.72559411,2925.0,2924.5,0.001]
[1764088581911,0.198,2924.9,2924.5,0.001]
[1764088582269,0.6597,2924.9,2924.5,0.001]
[1764088582483,0.72559411,2924.8,2924.5,0.001]
[1764088582681,0.4617,2925.2,2924.5,0.001]
[1764088582902,5.22378554,2926.1,2924.5,0.001]
[1764088582903,0.4617,2925.6,2924.5,0.001]
[1764088583229,4.80666054,2926.1,2924.5,0.1311]
[1764088583230,3.41786861,2925.8,2924.5,0.1311]
[1764088583372,6.83573722,2925.8,2924.5,0.1311]
[1764088583689,0.72559411,2925.7,2924.5,0.1311]
[1764088583865,0.72559411,2925.8,2924.5,0.1311]
[1764088584068,4.06459324,2925.9,2924.5,0.1311]
[1764088584264,0.31600053,2925.8,2924.6,10.25781303]
[1764088584474,1.04159464,2925.8,2924.6,10.25781303]
[1764088584798,0.72559411,2925.8,2924.7,0.1309]
[1764088585296,0.198,2925.9,2924.7,0.3519]
[1764088586001,0.198,2925.9,2924.8,0.1309]
[1764088586198,0.405504,2926.5,2924.9,6.8378406]
[1764088586533,0.77825425,2926.4,2924.9,6.8378406]
[1764088586699,0.31655425,2926.3,2925.0,0.1309]
[1764088586902,0.002,2925.2,2924.9,6.8378406]
[1764088587272,0.002,2925.2,2925.1,0.1309]
[1764088587485,0.4715,2925.0,2924.5,0.001]
[1764088587682,0.002,2925.2,2924.5,0.001]
[1764088587683,1.80059811,2924.6,2924.5,0.001]
[1764088587894,2.57920078,2924.6,2924.5,0.001]
[1764088588200,18.58266468,2924.6,2924.5,0.001]
[1764088588402,17.85185379,2924.6,2924.5,0.001]
[1764088588603,0.405504,2924.5,2924.2,0.001]
[1764088588903,0.4715,2924.3,2924.2,0.001]
[1764088589112,0.78840267,2924.3,2924.2,0.001]
[1764088589284,1.65560667,2924.3,2924.2,0.001]
[1764088589479,2.38701242,2924.3,2924.2,0.001]
[1764088589681,5.68199432,2924.3,2924.2,0.001]
[1764088590005,5.27649032,2924.3,2924.2,0.001]
[1764088590204,7.96471856,2924.3,2924.2,0.001]
[1764088590419,5.66480764,2924.3,2924.2,0.001]
[1764088590622,1.04249678,2924.3,2924.2,0.001]
[1764088590837,5.39531856,2924.3,2924.2,0.001]
[1764088591118,7.87892837,2924.3,2924.2,0.001]
[1764088591319,7.95128637,2924.3,2924.2,0.001]
[1764088591622,8.68313607,2924.3,2924.2,0.001]
[1764088591822,9.72406407,2924.3,2924.2,0.001]
[1764088592318,5.19443207,2924.3,2924.2,0.001]
[1764088592533,0.31736648,2924.3,2924.2,0.001]
[1764088592903,3.73698826,2924.3,2924.2,0.001]
[1764088593502,0.31736648,2924.3,2924.2,0.1329]
[1764088593920,1.7761871,2924.7,2924.2,0.001]
[1764088594126,0.72559411,2924.5,2924.2,0.001]
[1764088594290,0.72559411,2924.3,2924.2,0.001]
[1764088594490,0.31736648,2924.3,2924.2,0.001]
[1764088594999,0.31736648,2924.3,2924.2,0.1329]
[1764088595206,0.31736648,2924.4,2924.2,0.1329]
[1764088595410,0.31736648,2924.3,2924.2,0.1329]
[1764088595696,0.31736648,2924.3,2924.2,0.001]
[1764088596719,0.31736648,2924.3,2924.2,0.1329]
[1764088597306,3.73698826,2924.3,2924.2,0.001]
[1764088597520,4.47155596,2924.3,2924.2,0.001]
[1764088598132,0.31736648,2924.3,2924.2,0.2648]
[1764088598307,0.31736648,2924.3,2924.2,3.68453873]
[1764088599149,0.73493435,2925.1,2924.2,7.10427746]
[1764088599310,0.31924918,2925.0,2924.2,0.2648]
[1764088599516,0.51724918,2924.9,2924.2,0.001]
[1764088599824,0.31924918,2924.8,2924.2,0.001]
[1764088600022,0.31924918,2924.7,2924.2,0.001]
[1764088600216,0.31924918,2924.6,2924.2,0.001]
[1764088600543,0.31924918,2924.5,2924.2,0.001]
[1764088600841,0.31924918,2924.4,2924.2,0.001]
[1764088601158,0.31924918,2924.3,2924.2,0.001]
[1764088601322,0.31924918,2924.3,2924.2,0.1329]
[1764088601642,4.4738293,2924.9,2924.2,0.2648]
[1764088601857,1.05490864,2924.8,2924.2,0.2648]
[1764088602038,0.31924918,2924.7,2924.2,0.1329]
[1764088602350,3.41938792,2924.5,2924.2,0.001]
[1764088602561,0.31924918,2924.4,2924.2,0.001]
[1764088602857,0.31924918,2924.3,2924.2,0.001]
[1764088603150,0.31924918,2924.3,2924.2,0.1329]
[1764088603351,0.31924918,2924.3,2924.2,0.2648]
[1764088603736,0.31924918,2924.3,2924.2,0.1329]
[1764088603945,0.31937132,2924.3,2924.2,0.001]
[1764088605347,0.002,2924.5,2924.2,0.001]
[1764088608262,0.4707,2924.3,2924.2,0.001]
[1764088609446,0.73602844,2924.4,2924.2,0.001]
[1764088609646,0.4637,2924.5,2924.2,0.001]
[1764088609849,4.61930587,2924.5,2924.2,0.001]
[1764088610046,0.73613955,2924.4,2924.2,0.001]
[1764088610246,1.22283955,2924.4,2924.2,0.001]
[1764088610460,0.9586,2924.3,2924.2,0.001]
[1764088610661,6.24545944,2924.3,2924.2,0.001]
[1764088610827,20.06350044,2924.3,2924.2,0.001]
[1764088611228,19.34898044,2924.3,2924.2,0.001]
[1764088611457,5.83995544,2924.3,2924.2,0.001]
[1764088612965,7.06453922,2924.3,2924.2,0.001]
[1764088613345,14.34702122,2924.3,2924.2,0.001]
[1764088613736,12.93881222,2924.3,2924.2,0.001]
[1764088613937,9.49119322,2924.3,2924.2,0.001]
[1764088614170,9.88697022,2924.3,2924.2,0.001]
[1764088614334,10.23061622,2924.3,2924.2,0.001]
[1764088614540,9.95840922,2924.3,2924.2,0.001]
[1764088615263,7.47004322,2924.3,2924.2,0.001]
[1764088615471,10.80098522,2924.3,2924.2,0.001]
[1764088615678,9.57640144,2924.3,2924.2,0.001]
[1764088615840,11.41331664,2924.3,2924.2,0.001]
[1764088616179,0.72559411,2924.2,2924.1,0.001]
[1764088616383,18.79812166,2924.2,2924.1,0.001]
[1764088616958,5.65261166,2924.2,2924.1,0.001]
[1764088617146,9.07235039,2924.2,2924.1,0.001]
[1764088617469,17.82544028,2924.2,2924.1,0.001]
[1764088617869,18.55103439,2924.2,2924.1,0.001]
[1764088618177,20.39300827,2924.2,2924.1,0.001]
[1764088618476,24.23294627,2924.2,2924.1,0.001]
[1764088619175,24.63804296,2924.2,2924.1,0.001]
[1764088619358,37.24380797,2924.2,2924.1,0.001]
[1764088620174,36.70770139,2924.2,2924.1,0.001]
[1764088620379,30.01961939,2924.2,2924.1,0.001]
[1764088620584,35.93775865,2924.0,2923.9,0.001]
[1764088620767,38.39753527,2924.0,2923.9,0.001]
[1764088620970,38.87853527,2924.0,2923.9,0.001]
[1764088621467,42.29850791,2924.0,2923.9,0.001]
[1764088622349,12.29850791,2924.0,2923.9,0.001]
[1764088622550,42.29850791,2924.0,2923.9,0.001]
[1764088622767,42.39850791,2924.0,2923.9,0.001]
[1764088622965,42.29850791,2924.0,2923.9,0.001]
[1764088623192,41.07107084,2924.0,2923.9,0.001]
[1764088623547,41.17107084,2924.0,2923.9,0.001]
[1764088624380,41.07107084,2924.0,2923.9,0.001]
[1764088624746,42.91083537,2924.0,2923.9,0.001]
[1764088625146,43.22989281,2924.0,2923.9,0.001]
[1764088625375,18.60813474,2924.0,2923.9,0.001]
[1764088625578,14.22738257,2924.0,2923.9,0.001]
[1764088625776,13.73430168,2924.0,2923.9,0.001]
[1764088626087,14.0409227,2924.0,2923.9,0.001]
[1764088626284,12.81479774,2924.0,2923.9,0.001]
[1764088626482,32.74905674,2924.0,2923.9,0.001]
[1764088626686,28.94864374,2924.0,2923.9,0.001]
[1764088626982,31.68663985,2924.0,2923.9,0.001]
[1764088627292,31.78663985,2924.0,2923.9,0.001]
[1764088627453,37.66266885,2924.0,2923.9,0.001]
[1764088627784,37.76266885,2924.0,2923.9,0.001]
[1764088627993,41.36166885,2924.0,2923.9,0.001]
[1764088628212,35.62832969,2923.9,2923.8,0.001]
[1764088628495,26.3362791,2923.9,2923.8,0.001]
[1764088628651,30.26777868,2923.9,2923.8,0.001]
[1764088629061,31.2666818,2923.9,2923.8,0.001]
[1764088629265,4.73009811,2923.7,2922.3,0.1337]
[1764088629465,11.18105024,2923.7,2922.3,0.1337]
[1764088629787,41.18105024,2923.7,2922.3,0.1337]
[1764088630188,41.18105024,2923.7,2920.5,8.22284715]
[1764088630189,3.599,2923.1,2921.7,0.1337]
[1764088630489,0.405504,2922.3,2921.7,0.1337]
[1764088630683,0.73613955,2922.4,2922.2,0.1337]
[1764088630886,7.152618,2922.6,2922.3,0.1337]
[1764088631060,1.13109811,2922.7,2921.8,0.1337]
[1764088631061,1.05394112,2922.5,2921.8,0.1337]
[1764088631264,0.31889007,2922.4,2921.8,0.1337]
[1764088631463,0.72559411,2922.2,2921.8,0.1337]
[1764088631670,0.31889007,2922.1,2921.8,0.1337]
[1764088631893,0.31889007,2922.1,2922.0,0.1337]
[1764088632063,0.72559411,2922.4,2922.0,0.1337]
[1764088632260,0.31793234,2922.3,2922.1,0.1337]
[1764088632473,3.42090859,2923.2,2922.3,0.1337]
[1764088632673,0.91889414,2923.5,2922.9,0.1337]
[1764088632674,6.8411151,2923.5,2922.9,0.1337]
[1764088632860,0.73453384,2923.4,2923.1,0.1337]
[1764088633062,6.8411151,2923.5,2923.1,0.1337]
[1764088633289,0.72559411,2923.6,2923.4,0.1337]
[1764088633561,4.1461159,2923.6,2923.4,0.1337]
[1764088633792,4.14580069,2923.8,2923.5,0.1337]
[1764088633990,3.41986921,2924.1,2923.6,0.1337]
[1764088634179,0.73455662,2924.0,2923.4,0.1337]
[1764088634390,0.002,2924.3,2923.9,0.1337]
[1764088634591,0.002,2924.3,2924.2,0.1337]
[1764088635095,0.002,2924.3,2924.2,0.2674]
[1764088635668,0.002,2924.3,2924.2,3.68713873]
[1764088635967,0.002,2924.3,2924.2,0.2674]
[1764088636687,0.002,2924.3,2924.2,3.68713873]
[1764088639674,0.002,2924.5,2924.3,0.72559411]
[1764088639869,0.002,2924.5,2924.4,0.1337]
[1764088640070,0.002,2924.5,2924.4,0.2674]
[1764088640799,0.002,2924.6,2924.4,0.2674]
[1764088641004,0.002,2925.1,2924.7,0.1337]
[1764088641165,0.002,2925.1,2925.0,0.1337]
[1764088641772,0.002,2925.5,2925.1,0.85929411]
[1764088642006,0.002,2925.5,2925.4,0.1337]
[1764088642511,0.002,2925.5,2925.4,0.2674]
[1764088642670,0.4623,2926.9,2925.4,0.2674]
[1764088642873,0.1948,2927.0,2925.7,0.1337]
[1764088643176,3.61137599,2927.0,2925.7,0.1337]
[1764088643391,3.41681852,2926.7,2925.7,0.2674]
[1764088643590,0.1806,2927.6,2925.7,0.1337]
[1764088643771,3.87818385,2927.5,2925.7,4.41097954]
[1764088643972,7.2940677,2927.5,2925.8,0.72559411]
[1764088644176,0.31667299,2927.4,2925.8,0.85929411]
[1764088644484,0.31667299,2927.4,2925.9,0.1337]
[1764088644692,2.44813,2927.3,2925.9,0.1337]
[1764088644888,0.31667299,2927.2,2926.0,0.1337]
[1764088645215,0.405504,2927.3,2926.0,0.1337]
[1764088645585,3.073166,2927.2,2926.0,0.1337]
[1764088646224,6.8327013,2927.1,2926.1,3.41751819]
[1764088646722,6.8327013,2927.1,2926.0,3.41753466]
[1764088646943,3.41565051,2927.7,2927.0,0.1337]
[1764088647220,0.72559411,2927.6,2927.0,0.1337]
[1764088648223,6.8317677,2927.5,2926.3,0.1337]
[1764088648426,7.2940677,2927.5,2926.3,0.1337]
[1764088648718,7.2940677,2927.5,2925.9,0.1337]
[1764088648719,1.18789411,2927.4,2925.9,0.1337]
[1764088649085,0.4623,2927.3,2925.9,0.1337]
[1764088649288,0.72559411,2927.4,2925.9,0.1337]
[1764088650438,6.83203928,2927.4,2926.1,0.82412072]
[1764088650640,6.83203928,2927.4,2926.1,0.72559411]
[1764088650841,6.83203928,2927.4,2926.2,0.1337]
[1764088651206,3.41576718,2927.6,2926.2,0.1337]
[1764088651409,0.53599265,2928.0,2926.2,0.1337]
[1764088651410,0.53599265,2928.0,2927.6,0.1337]
[1764088651718,0.53599265,2928.0,2926.2,0.1337]
[1764088651719,3.41425108,2928.9,2927.9,0.1337]
[1764088651922,5.78572111,2928.8,2927.9,0.1337]
[1764088652104,1.18789411,2928.8,2927.9,0.1337]
[1764088652310,0.72559411,2928.6,2927.9,0.1337]
[1764088653155,3.41448424,2928.7,2928.0,3.41530054]
[1764088653320,3.41441215,2928.8,2928.0,3.41530054]
[1764088653523,3.41441215,2928.8,2928.0,6.83060108]
[1764088653710,3.41430572,2928.9,2928.0,6.96430108]
[1764088653910,6.82861144,2928.9,2928.0,3.54900054]
[1764088654332,3.41448424,2928.7,2928.0,3.54900054]
[1764088654547,3.41448424,2928.7,2928.0,0.1337]
[1764088654711,1.18789411,2928.6,2927.3,0.1337]
[1764088654910,0.405504,2928.3,2926.4,10.38520355]
[1764088655230,0.72559411,2927.9,2926.4,3.55086785]
[1764088655431,0.405504,2927.7,2926.4,6.9680357]
[1764088655610,0.405504,2927.7,2926.5,0.1337]
[1764088655812,0.867804,2927.7,2926.5,0.1337]
[1764088656215,6.83153436,2927.6,2926.6,3.41693432]
[1764088656420,6.83153436,2927.6,2926.5,3.55066623]
[1764088656421,0.72559411,2927.5,2926.5,3.55074172]
[1764088657138,0.72559411,2927.5,2925.7,3.82343938]
[1764088657139,0.668,2926.6,2923.9,0.001]
[1764088657309,1.21299411,2926.3,2924.9,0.1337]
[1764088657510,0.4874,2926.3,2925.1,0.2674]
[1764088657710,0.4874,2926.3,2925.2,0.1337]
[1764088657921,0.4623,2926.5,2925.2,3.55226967]
[1764088658244,0.4623,2926.5,2925.3,0.1337]
[1764088658548,0.72559411,2926.3,2925.3,3.55213664]
[1764088659257,0.1806,2926.6,2925.4,0.1337]
[1764088659425,0.1806,2926.6,2925.4,0.85929411]
[1764088659426,3.59757788,2926.6,2925.4,0.85929411]
[1764088659748,0.002,2926.5,2925.5,0.1337]
[1764088660509,0.002,2926.5,2925.6,6.83620452]
[1764088660848,0.002,2926.5,2926.4,0.1337]
[1764088661143,0.002,2926.5,2926.4,0.2674]
[1764088661322,0.002,2926.5,2925.9,0.1337]
[1764088661725,0.002,2926.5,2926.4,0.1337]
[1764088663030,0.4894,2926.5,2925.6,0.72559411]
[1764088663658,0.77926808,2926.4,2925.2,3.41856967]
[1764088663950,0.31696808,2926.3,2925.2,6.97083934]
[1764088664648,0.31696808,2926.3,2925.2,0.1337]
[1764088664842,0.72559411,2926.1,2925.2,3.55224539]
[1764088665047,0.31696808,2926.0,2925.2,3.55224539]
[1764088665655,0.31696808,2926.0,2925.2,6.97081506]
[1764088666526,0.49756808,2925.9,2925.1,0.1347]
[1764088666716,0.31696808,2925.8,2925.2,3.41856394]
[1764088666916,3.41786861,2925.8,2925.2,3.41856394]
[1764088667113,3.59840241,2925.9,2925.2,3.41856394]
[1764088667422,0.31800519,2925.8,2925.2,6.83713361]
[1764088667626,0.31800519,2925.8,2925.1,0.001]
[1764088667627,0.4874,2925.3,2925.1,0.001]
[1764088667830,4.14274638,2925.2,2925.1,0.001]
[1764088668173,7.09076555,2925.2,2925.1,0.001]
[1764088668319,2.72622555,2925.2,2925.1,0.001]
[1764088668819,8.23844822,2925.2,2925.1,0.001]
[1764088669044,15.46138122,2925.2,2925.1,0.001]
[1764088669260,14.84895122,2925.2,2925.1,0.001]
[1764088669460,11.44660622,2925.2,2925.1,0.001]
[1764088669647,5.68249522,2925.2,2925.1,0.001]
[1764088669850,5.41191605,2925.2,2925.1,0.001]
[1764088670169,6.14495852,2925.2,2925.1,0.001]
[1764088670337,12.21719766,2925.2,2925.1,0.001]
[1764088670538,10.88171352,2925.2,2925.1,0.001]
[1764088671061,10.34315952,2925.2,2925.1,0.001]
[1764088671235,10.72735652,2925.2,2925.1,0.001]
[1764088671441,9.95496252,2925.2,2925.1,0.001]
[1764088672172,9.44176652,2925.2,2925.1,0.001]
[1764088672463,6.14495852,2925.2,2925.1,0.001]
[1764088672666,0.31805227,2925.2,2925.1,0.001]
[1764088672877,1.05003612,2925.5,2925.1,0.001]
[1764088673162,0.31805227,2925.4,2925.1,0.001]
[1764088673325,0.31805227,2925.3,2925.1,0.001]
[1764088674868,4.14416378,2925.2,2925.1,0.001]
[1764088675063,4.46221605,2925.2,2925.1,0.001]
[1764088675632,4.95331605,2925.2,2925.1,0.001]
[1764088676334,11.51638005,2925.2,2925.1,0.001]
[1764088676549,5.43291605,2925.2,2925.1,0.001]
[1764088676754,8.74179905,2925.2,2925.1,0.001]
[1764088676934,5.43291605,2925.2,2925.1,0.001]
[1764088677154,8.35291605,2925.2,2925.1,0.001]
[1764088678001,5.43291605,2925.2,2925.1,0.001]
[1764088678676,1.04364638,2925.2,2925.1,0.001]
[1764088678842,0.4576,2925.8,2925.1,0.001]
[1764088678843,6.83597086,2925.7,2925.1,0.1347]
[1764088679045,1.04279123,2925.6,2925.1,0.1347]
[1764088679250,0.31719712,2925.5,2925.1,3.55334209]
[1764088679481,3.59840936,2925.9,2925.1,6.97202863]
[1764088679772,1.04277606,2925.8,2925.4,0.1337]
[1764088679969,0.31718195,2925.7,2925.4,0.1337]
[1764088680273,0.31638195,2925.7,2925.4,0.1337]
[1764088680456,0.31638195,2925.7,2925.6,0.1337]
[1764088680839,0.31638195,2925.7,2925.1,3.55335405]
[1764088681035,3.73438166,2925.7,2925.1,0.1347]
[1764088681344,3.41799971,2925.7,2925.1,3.55335144]
[1764088681672,6.83599942,2925.7,2925.1,0.001]
[1764088681835,3.41799971,2925.7,2925.1,3.4196828]
[1764088682036,6.83599942,2925.7,2925.1,0.001]
[1764088682874,0.72559411,2925.7,2925.1,3.41960371]
[1764088683179,3.41810226,2925.6,2925.1,0.001]
[1764088683860,6.83620452,2925.6,2925.1,0.001]
[1764088684058,3.41810226,2925.6,2925.1,0.001]
[1764088684377,6.83620452,2925.6,2925.1,0.001]
[1764088684575,0.72559411,2925.5,2925.1,0.001]
[1764088684751,0.72559411,2925.6,2925.1,0.001]
[1764088684957,0.72559411,2925.4,2925.1,0.001]
[1764088686075,0.4576,2925.3,2925.1,0.001]
[1764088686383,0.4692,2925.2,2925.1,0.001]
[1764088686879,0.72559411,2925.2,2925.1,0.001]
[1764088687042,4.87873598,2925.2,2925.1,0.001]
[1764088687876,5.80553598,2925.2,2925.1,0.001]
[1764088688884,5.34793598,2925.2,2925.1,0.001]
[1764088689247,4.87873598,2925.2,2925.1,0.001]
[1764088689739,5.80553598,2925.2,2925.1,0.001]